fUSD/lending_fUSD_20260612
["ID","MTS","AMOUNT","RATE_DAILY","PERIOD"]
[424915342,1781269849000,-446.26987052,0.00015,2]
[424915343,1781269849000,-52097.27350072,0.00015,2]
[424915341,1781269849000,-2249.98147386,0.00015,2]
[424915344,1781269849000,-2184.34232518,0.00015,2]
[424915330,1781269849000,-500.0,0.00014999,2]
[424915316,1781269849000,-500.0,0.00014999,2]
[424915317,1781269849000,-500.0,0.00014999,2]
[424915321,1781269849000,-500.0,0.00014999,2]
[424915290,1781269849000,-500.0,0.00014999,2]
[424915295,1781269849000,-500.0,0.00014999,2]
[424915293,1781269849000,-500.0,0.00014999,2]
[424915298,1781269849000,-500.0,0.00014999,2]
[424915292,1781269849000,-500.0,0.00014999,2]
[424915291,1781269849000,-500.0,0.00014999,2]
[424915296,1781269849000,-500.0,0.00014999,2]
[424915297,1781269849000,-500.0,0.00014999,2]
[424915300,1781269849000,-500.0,0.00014999,2]
[424915303,1781269849000,-500.0,0.00014999,2]
[424915319,1781269849000,-500.0,0.00014999,2]
[424915305,1781269849000,-500.0,0.00014999,2]
[424915301,1781269849000,-500.0,0.00014999,2]
[424915302,1781269849000,-500.0,0.00014999,2]
[424915309,1781269849000,-500.0,0.00014999,2]
[424915304,1781269849000,-500.0,0.00014999,2]
[424915308,1781269849000,-500.0,0.00014999,2]
[424915310,1781269849000,-500.0,0.00014999,2]
[424915307,1781269849000,-500.0,0.00014999,2]
[424915312,1781269849000,-500.0,0.00014999,2]
[424915311,1781269849000,-500.0,0.00014999,2]
[424915314,1781269849000,-500.0,0.00014999,2]
[424915313,1781269849000,-500.0,0.00014999,2]
[424915315,1781269849000,-500.0,0.00014999,2]
[424915306,1781269849000,-500.0,0.00014999,2]
[424915347,1781269850000,-1271.27,0.00015,2]
[424915346,1781269850000,-18960.72605932,0.00015,2]
[424915349,1781269850000,-4248.26107485,0.00015,2]
[424915345,1781269850000,-752376.48853324,0.00015,2]
[424915351,1781269850000,-2122.98673464,0.00015,2]
[424915350,1781269850000,-28553.97872879,0.00015,2]
[424915348,1781269850000,-6480.97436556,0.00013304,2]
[424915352,1781269850000,-2029.42715425,0.00015,2]
[424915362,1781269851000,-5216.34477747,0.00013836,2]
[424915364,1781269851000,-348.00732758,0.00015,2]
[424915363,1781269851000,-4220.74999616,0.00015,2]
[424915361,1781269851000,-81.71053389,0.00013836,2]
[424915360,1781269851000,-358.21970899,0.00013836,2]
[424915359,1781269851000,-824.69934521,0.00013836,2]
[424915354,1781269851000,-599.78908932,0.00015,2]
[424915356,1781269851000,-315.49158619,0.00015,2]
[424915357,1781269851000,-8778.84769887,0.00015,2]
[424915355,1781269851000,-125488.5995634,0.00015,2]
[424915358,1781269851000,-10847.72803583,0.00015,2]
[424915353,1781269851000,-10614.67078614,0.00015,2]
[424915366,1781269870000,500.0,0.00011176,2]
[424915365,1781269870000,-364.7321531,0.00014368,2]
[424915367,1781269890000,-364.7321531,0.00011176,2]
[424915368,1781269909000,-500.0,0.00011176,2]
[424915369,1781269929000,-500.0,0.00011176,2]
[424915370,1781269949000,-334.84447698,0.00011176,2]
[424915371,1781269969000,-315.61471214,0.00011176,2]
[424915372,1781270149000,-285.7741901,9.9e-05,2]
[424915373,1781270202000,-500.0,9.9e-05,2]
[424915374,1781270256000,-1076.04,0.00010023,2]
[424915376,1781270290000,-2928.26,9.982e-05,2]
[424915375,1781270290000,-329.31,9.911e-05,2]
[424915378,1781270290000,-150.0,0.00010081,2]
[424915379,1781270290000,-6289.02131848,0.00010114,2]
[424915377,1781270290000,-303.40868152,0.00010068,2]
[424915388,1781270309000,-5596.73208148,0.0001036,2]
[424915387,1781270309000,-275.0,0.0001028,2]
[424915385,1781270309000,-385.37,0.00010161,2]
[424915386,1781270309000,-150.0,0.0001018,2]
[424915384,1781270309000,-810.26019631,0.00010155,2]
[424915383,1781270309000,-300.0,0.00010134,2]
[424915382,1781270309000,-312.67275098,0.00010134,2]
[424915381,1781270309000,-2169.96497123,0.00010134,2]
[424915380,1781270309000,-629.60868152,0.00010114,2]
[424915389,1781270310000,-10000.0,0.0001036,2]
[424915391,1781270312000,-170.77286613,0.00010375,2]
[424915390,1781270312000,-2882.23827646,0.0001036,2]
[424915392,1781270312000,-172.69406959,0.00010378,2]
[424915394,1781270312000,-150.0,0.00010598,2]
[424915395,1781270312000,-500.0,0.00010599,2]
[424915396,1781270312000,-256.53220928,0.00010599,2]
[424915393,1781270312000,-2000.0,0.00010493,2]
[424915406,1781270313000,-277.04602416,0.00010599,2]
[424915397,1781270313000,-481.79458278,0.00010599,2]
[424915398,1781270313000,-500.0,0.00010599,2]
[424915399,1781270313000,-616.27963198,0.00010599,2]
[424915400,1781270313000,-500.0,0.00010599,2]
[424915401,1781270313000,-500.0,0.00010599,2]
[424915404,1781270313000,-185.52405932,0.00010599,2]
[424915403,1781270313000,-500.0,0.00010599,2]
[424915405,1781270313000,-222.95397584,0.00010599,2]
[424915402,1781270313000,-361.21032862,0.00010599,2]
[424915408,1781270313000,-591.56740802,0.00010599,2]
[424915409,1781270313000,-500.0,0.00010599,2]
[424915410,1781270313000,-500.0,0.00010599,2]
[424915413,1781270313000,-500.0,0.00010599,2]
[424915412,1781270313000,-500.0,0.00010599,2]
[424915411,1781270313000,-500.0,0.00010599,2]
[424915414,1781270313000,-500.0,0.00010599,2]
[424915415,1781270313000,-500.0,0.00010599,2]
[424915417,1781270313000,-500.0,0.00010599,2]
[424915416,1781270313000,-500.0,0.00010599,2]
[424915407,1781270313000,-500.0,0.00010599,2]
[424915419,1781270314000,-500.0,0.00010599,2]
[424915421,1781270314000,-500.0,0.00010599,2]
[424915418,1781270314000,-500.0,0.00010599,2]
[424915422,1781270314000,-500.0,0.00010599,2]
[424915426,1781270314000,-131.38656782,0.00010599,2]
[424915423,1781270314000,-500.0,0.00010599,2]
[424915425,1781270314000,-500.0,0.00010599,2]
[424915424,1781270314000,-500.0,0.00010599,2]
[424915420,1781270314000,-500.0,0.00010599,2]
[424915429,1781270315000,-336.08904582,0.00010599,2]
[424915430,1781270315000,-500.0,0.00010599,2]
[424915428,1781270315000,-500.0,0.00010599,2]
[424915431,1781270315000,-500.0,0.00010599,2]
[424915432,1781270315000,-500.0,0.00010599,2]
[424915434,1781270315000,-500.0,0.00010599,2]
[424915433,1781270315000,-500.0,0.00010599,2]
[424915435,1781270315000,-500.0,0.00010599,2]
[424915436,1781270315000,-500.0,0.00010599,2]
[424915427,1781270315000,-368.61343218,0.00010599,2]
[424915438,1781270315000,-500.0,0.00010599,2]
[424915447,1781270315000,-270.82203694,0.00010599,2]
[424915437,1781270315000,-500.0,0.00010599,2]
[424915444,1781270315000,-500.0,0.00010599,2]
[424915445,1781270315000,-500.0,0.00010599,2]
[424915446,1781270315000,-500.0,0.00010599,2]
[424915441,1781270315000,-500.0,0.00010599,2]
[424915442,1781270315000,-500.0,0.00010599,2]
[424915440,1781270315000,-500.0,0.00010599,2]
[424915439,1781270315000,-500.0,0.00010599,2]
[424915443,1781270315000,-524.47548506,0.00010599,2]
[424915448,1781270316000,-229.17796306,0.00010599,2]
[424915449,1781270316000,-298.24894038,0.00010599,2]
[424915451,1781270316000,-500.0,0.00010599,2]
[424915452,1781270316000,-500.0,0.00010599,2]
[424915450,1781270316000,-500.0,0.00010599,2]
[424915453,1781270316000,-500.44346536,0.00010599,2]
[424915456,1781270316000,-772.4941606,0.00010599,2]
[424915457,1781270316000,-772.4941606,0.00010599,2]
[424915454,1781270316000,-772.4941606,0.00010599,2]
[424915459,1781270316000,-772.4941606,0.00010599,2]
[424915458,1781270316000,-772.4941606,0.00010599,2]
[424915460,1781270316000,-772.4941606,0.00010599,2]
[424915461,1781270316000,-772.4941606,0.00010599,2]
[424915462,1781270316000,-772.4941606,0.00010599,2]
[424915463,1781270316000,-519.6821858,0.00010599,2]
[424915455,1781270316000,-772.4941606,0.00010599,2]
[424915469,1781270317000,-772.4941606,0.00010599,2]
[424915464,1781270317000,-252.8119748,0.00010599,2]
[424915465,1781270317000,-772.4941606,0.00010599,2]
[424915466,1781270317000,-772.4941606,0.00010599,2]
[424915468,1781270317000,-772.4941606,0.00010599,2]
[424915470,1781270317000,-772.4941606,0.00010599,2]
[424915467,1781270317000,-772.4941606,0.00010599,2]
[424915473,1781270317000,-772.4941606,0.00010599,2]
[424915471,1781270317000,-772.4941606,0.00010599,2]
[424915472,1781270317000,-772.4941606,0.00010599,2]
[424915474,1781270317000,-772.4941606,0.00010599,2]
[424915476,1781270317000,-772.4941606,0.00010599,2]
[424915477,1781270317000,-477.258098,0.00010599,2]
[424915475,1781270317000,-772.4941606,0.00010599,2]
[424915480,1781270318000,-772.4941606,0.00010599,2]
[424915478,1781270318000,-295.2360626,0.00010599,2]
[424915479,1781270318000,-772.4941606,0.00010599,2]
[424915481,1781270318000,-772.4941606,0.00010599,2]
[424915483,1781270318000,-772.4941606,0.00010599,2]
[424915482,1781270318000,-772.4941606,0.00010599,2]
[424915487,1781270318000,-772.4941606,0.00010599,2]
[424915485,1781270318000,-772.4941606,0.00010599,2]
[424915489,1781270318000,-772.4941606,0.00010599,2]
[424915490,1781270318000,-772.4941606,0.00010599,2]
[424915484,1781270318000,-772.4941606,0.00010599,2]
[424915486,1781270318000,-772.4941606,0.00010599,2]
[424915488,1781270318000,-772.4941606,0.00010599,2]
[424915491,1781270319000,-434.8340102,0.00010599,2]
[424915505,1781270321000,-418.89543644,0.00010599,2]
[424915493,1781270321000,-772.4941606,0.00010599,2]
[424915492,1781270321000,-337.6601504,0.00010599,2]
[424915495,1781270321000,-772.4941606,0.00010599,2]
[424915497,1781270321000,-772.4941606,0.00010599,2]
[424915498,1781270321000,-772.4941606,0.00010599,2]
[424915494,1781270321000,-772.4941606,0.00010599,2]
[424915499,1781270321000,-772.4941606,0.00010599,2]
[424915501,1781270321000,-765.87278209,0.00010599,2]
[424915503,1781270321000,-765.87278209,0.00010599,2]
[424915502,1781270321000,-765.87278209,0.00010599,2]
[424915504,1781270321000,-765.87278209,0.00010599,2]
[424915500,1781270321000,-772.4941606,0.00010599,2]
[424915496,1781270321000,-772.4941606,0.00010599,2]
[424915511,1781270323000,-765.87278209,0.00010599,2]
[424915506,1781270323000,-346.97734565,0.00010599,2]
[424915508,1781270323000,-765.87278209,0.00010599,2]
[424915507,1781270323000,-765.87278209,0.00010599,2]
[424915509,1781270323000,-765.87278209,0.00010599,2]
[424915510,1781270323000,-765.87278209,0.00010599,2]
[424915513,1781270323000,-765.87278209,0.00010599,2]
[424915514,1781270323000,-765.87278209,0.00010599,2]
[424915512,1781270323000,-765.87278209,0.00010599,2]
[424915519,1781270323000,-462.54926927,0.00010599,2]
[424915518,1781270323000,-765.87278209,0.00010599,2]
[424915516,1781270323000,-765.87278209,0.00010599,2]
[424915517,1781270323000,-765.87278209,0.00010599,2]
[424915515,1781270323000,-765.87278209,0.00010599,2]
[424915529,1781270324000,-412.510923,0.000107,3]
[424915528,1781270324000,-1000.0,0.000107,3]
[424915525,1781270324000,-1852.42,0.00010659,2]
[424915527,1781270324000,-300.0,0.00010699,2]
[424915524,1781270324000,-200.0,0.000106,3]
[424915523,1781270324000,-3900.0,0.000106,3]
[424915522,1781270324000,-765.87278209,0.00010599,2]
[424915521,1781270324000,-765.87278209,0.00010599,2]
[424915520,1781270324000,-303.32351282,0.00010599,2]
[424915526,1781270324000,-500.0,0.00010699,2]
[424915530,1781270325000,-7387.489077,0.000107,3]
[424915533,1781270325000,-112.510923,0.000108,3]
[424915532,1781270325000,-2100.0,0.000108,3]
[424915531,1781270325000,-400.0,0.000107,3]
[424915534,1781270327000,-10000.0,0.000108,3]
[424915536,1781270328000,-600.0,0.000108,3]
[424915537,1781270328000,-5577.53562664,0.00010824,2]
[424915535,1781270328000,-1587.489077,0.000108,3]
[424915538,1781270328000,-2234.97529636,0.000109,3]
[424915540,1781270329000,-9034.97529636,0.000109,3]
[424915539,1781270329000,-965.02470364,0.000109,3]
[424915542,1781270330000,-800.0,0.000109,3]
[424915543,1781270330000,-2634.97529636,0.00010955,2]
[424915541,1781270330000,-6565.02470364,0.000109,3]
[424915548,1781270332000,-500.0,0.00010973,2]
[424915547,1781270332000,-634.75683556,0.0001096,2]
[424915546,1781270332000,-166.66,0.00010959,2]
[424915545,1781270332000,-238.197,0.00010955,2]
[424915544,1781270332000,-255.59670364,0.00010955,2]
[424915549,1781270362000,-250.0,0.00011025,2]
[424915550,1781270416000,-500.0,0.00010359,2]
[424915551,1781270469000,-500.0,0.00010359,2]
[424915553,1781270469000,-300.0,0.00010511,2]
[424915554,1781270469000,-9200.0,0.00010512,2]
[424915552,1781270469000,-500.0,0.00010359,2]
[424915556,1781270473000,-20.01,0.00010512,2]
[424915555,1781270473000,-1000.0,0.00010249,2]
[424915560,1781270474000,-166.66,0.00011026,2]
[424915557,1781270474000,-201.27398198,0.00010599,2]
[424915559,1781270474000,-150.0,0.00010959,2]
[424915558,1781270474000,-166.66,0.00010674,2]
[424915562,1781270474000,-166.66,0.00011068,2]
[424915563,1781270474000,-822.2416,0.00011076,2]
[424915564,1781270474000,-500.0,0.00011076,2]
[424915565,1781270474000,-6515.67625834,0.00011088,2]
[424915561,1781270474000,-290.81815968,0.00011047,2]
[424915570,1781270475000,-546.57585139,0.00010511,2]
[424915567,1781270475000,-500.0,0.00010511,2]
[424915566,1781270475000,-500.0,0.00010511,2]
[424915568,1781270475000,-500.0,0.00010511,2]
[424915569,1781270475000,-500.0,0.00010511,2]
[424915571,1781270475000,-500.0,0.00010511,2]
[424915572,1781270475000,-500.0,0.00010511,2]
[424915574,1781270475000,-500.0,0.00010511,2]
[424915575,1781270475000,-500.0,0.00010511,2]
[424915573,1781270475000,-500.0,0.00010511,2]
[424915578,1781270475000,-811.55993801,0.00011088,2]
[424915580,1781270475000,-2991.8642106,0.00011099,2]
[424915576,1781270475000,-500.0,0.00010511,2]
[424915579,1781270475000,-150.0,0.00011098,2]
[424915577,1781270475000,-500.0,0.00010511,2]
[424915582,1781270476000,-500.0,0.00010511,2]
[424915583,1781270476000,-500.0,0.00010511,2]
[424915584,1781270476000,-500.0,0.00010511,2]
[424915581,1781270476000,-500.0,0.00010511,2]
[424915588,1781270476000,-500.0,0.00010511,2]
[424915587,1781270476000,-500.0,0.00010511,2]
[424915589,1781270476000,-6000.0,0.00011099,2]
[424915586,1781270476000,-500.0,0.00010511,2]
[424915585,1781270476000,-500.0,0.00010511,2]
[424915590,1781270477000,-10000.0,0.00011099,2]
[424915591,1781270478000,-10000.0,0.00011099,2]
[424915592,1781270481000,-10000.0,0.00011099,2]
[424915593,1781270482000,-4068.21219695,0.00011099,2]
[424915594,1781270482000,-5931.78780305,0.00011112,2]
[424915596,1781270483000,-193.0,0.00011125,2]
[424915595,1781270483000,-2283.32253186,0.00011112,2]
[424915598,1781270483000,-300.0,0.00011125,2]
[424915599,1781270483000,-413.90256807,0.00011125,2]
[424915600,1781270483000,-2809.77490007,0.00011147,2]
[424915597,1781270483000,-4000.0,0.00011125,2]
[424915601,1781270523000,-465.12928816,9.811e-05,2]
[424915602,1781270543000,-34.87071184,9.811e-05,2]
[424915615,1781270544000,-6287.08083741,0.00011147,2]
[424915614,1781270544000,-202.6994181,0.00011098,2]
[424915613,1781270544000,-212.28702721,0.00011088,2]
[424915612,1781270544000,-369.62970646,0.00011088,2]
[424915611,1781270544000,-212.28702721,0.00011068,2]
[424915610,1781270544000,-212.28702723,0.00011047,2]
[424915609,1781270544000,-151.52206243,0.00010871,2]
[424915608,1781270544000,-481.78767176,0.00010511,2]
[424915606,1781270544000,-353.9471177,0.00010511,2]
[424915607,1781270544000,-366.47210449,0.00010511,2]
[424915604,1781270544000,-500.0,0.00010511,2]
[424915605,1781270544000,-500.0,0.00010511,2]
[424915603,1781270544000,-150.0,0.00010161,2]
[424915616,1781270546000,-10000.0,0.00011147,2]
[424915617,1781270596000,-572.15,0.00010776,2]
[424915620,1781270598000,-783.1140885,0.00011147,2]
[424915621,1781270598000,-4871.94054239,0.00011151,2]
[424915618,1781270598000,-300.0,0.00010962,2]
[424915619,1781270598000,-992.94536911,0.00011147,2]
[424915630,1781270622000,-411.30324044,0.00010511,2]
[424915629,1781270622000,-500.0,0.00010511,2]
[424915627,1781270622000,-500.0,0.00010511,2]
[424915626,1781270622000,-500.0,0.00010511,2]
[424915628,1781270622000,-500.0,0.00010511,2]
[424915625,1781270622000,-500.0,0.00010511,2]
[424915623,1781270622000,-323.61510695,0.00010378,2]
[424915624,1781270622000,-500.0,0.00010511,2]
[424915622,1781270622000,-305.08165261,0.00010351,2]
[424915631,1781270632000,-264.28,0.00010579,2]
[424915633,1781270632000,-534.81048279,0.00011098,2]
[424915634,1781270632000,-4044.79587713,0.00011151,2]
[424915632,1781270632000,-156.11364008,0.00010847,2]
[424915644,1781270633000,-500.0,0.00011146,2]
[424915643,1781270633000,-500.0,0.00011146,2]
[424915642,1781270633000,-500.0,0.00011146,2]
[424915641,1781270633000,-500.0,0.00011146,2]
[424915639,1781270633000,-500.0,0.00011146,2]
[424915640,1781270633000,-500.0,0.00011146,2]
[424915638,1781270633000,-500.0,0.00011146,2]
[424915637,1781270633000,-500.0,0.00011146,2]
[424915636,1781270633000,-500.0,0.00011146,2]
[424915635,1781270633000,-500.0,0.00011146,2]
[424915646,1781270638000,-500.0,0.00011146,2]
[424915645,1781270638000,-329.4939,0.00010259,2]
[424915648,1781270638000,-500.0,0.00011146,2]
[424915649,1781270638000,-500.0,0.00011146,2]
[424915652,1781270638000,-500.0,0.00011146,2]
[424915650,1781270638000,-500.0,0.00011146,2]
[424915651,1781270638000,-500.0,0.00011146,2]
[424915653,1781270638000,-500.0,0.00011146,2]
[424915647,1781270638000,-500.0,0.00011146,2]
[424915655,1781270639000,-170.5061,0.00011146,2]
[424915654,1781270639000,-500.0,0.00011146,2]
[424915656,1781270640000,-329.4939,0.00011146,2]
[424915659,1781270640000,-500.0,0.00011146,2]
[424915657,1781270640000,-500.0,0.00011146,2]
[424915658,1781270640000,-500.0,0.00011146,2]
[424915660,1781270640000,-500.0,0.00011146,2]
[424915665,1781270640000,-500.0,0.00011146,2]
[424915662,1781270640000,-500.0,0.00011146,2]
[424915661,1781270640000,-500.0,0.00011146,2]
[424915666,1781270640000,-170.5061,0.00011146,2]
[424915664,1781270640000,-500.0,0.00011146,2]
[424915663,1781270640000,-500.0,0.00011146,2]
[424915669,1781270642000,-3236.24251952,0.00011151,2]
[424915668,1781270642000,-1434.26358048,0.00011151,2]
[424915667,1781270642000,-329.4939,0.00011146,2]
[424915671,1781270643000,-4700.0,0.00011151,2]
[424915670,1781270643000,-300.0,0.00011148,2]
[424915672,1781270645000,-5000.0,0.00011151,2]
[424915674,1781270646000,-225.227,0.00011151,2]
[424915673,1781270646000,-210.75748048,0.00011151,2]
[424915675,1781270646000,-2877.097,0.00011151,2]
[424915677,1781270646000,-908.18287013,0.00011164,2]
[424915678,1781270646000,-628.73564939,0.00011164,2]
[424915676,1781270646000,-150.0,0.00011163,2]
[424915684,1781270694000,-2396.0,0.00011047,2]
[424915683,1781270694000,-800.0,0.000109,3]
[424915680,1781270694000,-200.0,0.000106,3]
[424915681,1781270694000,-400.0,0.000107,3]
[424915679,1781270694000,-200.0,0.00010594,2]
[424915682,1781270694000,-600.0,0.000108,3]
[424915685,1781270709000,-1510.43,0.00010424,2]
[424915688,1781270709000,-186.72,0.00010959,2]
[424915689,1781270709000,-442.99,0.00011047,2]
[424915687,1781270709000,-1510.43,0.00010945,2]
[424915686,1781270709000,-1510.43,0.00010685,2]
[424915692,1781270736000,-661.9635794,0.00011106,2]
[424915693,1781270736000,-2833.5692206,0.00011106,2]
[424915691,1781270736000,-1342.1372,0.00011047,2]
[424915690,1781270736000,-162.33,0.00010568,2]
[424915698,1781270737000,-374.36733795,0.00011163,2]
[424915699,1781270737000,-56.49947527,0.00011163,2]
[424915697,1781270737000,-181.14658378,0.00011146,2]
[424915695,1781270737000,-157.19839665,0.00011146,2]
[424915696,1781270737000,-157.19839665,0.00011146,2]
[424915694,1781270737000,-4073.5898097,0.00011106,2]
[424915701,1781270738000,-4756.49947527,0.00011164,2]
[424915700,1781270738000,-243.50052473,0.00011163,2]
[424915702,1781270786000,-150.0,0.00010959,2]
[424915704,1781270787000,-246.4198043,0.00011106,2]
[424915705,1781270787000,-87.83014448,0.00011164,2]
[424915703,1781270787000,-313.75005122,0.00011061,2]
[424915706,1781270839000,-450.56,0.00010601,2]
[424915707,1781270893000,-628.7,0.00010289,2]
[424915708,1781270946000,-701.25,0.0001023,2]
[424915709,1781270947000,-995.74039542,0.00010195,2]
[424915711,1781270955000,-1217.65,0.00010313,2]
[424915712,1781270955000,-1024.70199304,0.00010531,2]
[424915710,1781270955000,-441.26960458,0.00010195,2]
[424915713,1781270999000,-1683.89549791,0.00010531,2]
[424915714,1781271020000,-427.82,0.00010164,2]
[424915746,1781271031000,-89.91207648,0.00010599,2]
[424915717,1781271031000,-178.90847306,0.00010301,2]
[424915719,1781271031000,-314.6968067,0.00010531,2]
[424915716,1781271031000,-212.44,0.00010132,2]
[424915718,1781271031000,-41.09152694,0.00010301,2]
[424915720,1781271031000,-1560.98570235,0.00010531,2]
[424915727,1781271031000,-385.89664205,0.00010599,2]
[424915724,1781271031000,-466.3996853,0.00010599,2]
[424915722,1781271031000,-135.24954841,0.00010598,2]
[424915723,1781271031000,-151.78363437,0.00010599,2]
[424915721,1781271031000,-14.75045159,0.00010598,2]
[424915729,1781271031000,-500.0,0.00010599,2]
[424915728,1781271031000,-114.10335795,0.00010599,2]
[424915726,1781271031000,-500.0,0.00010599,2]
[424915731,1781271031000,-500.0,0.00010599,2]
[424915725,1781271031000,-33.6003147,0.00010599,2]
[424915732,1781271031000,-500.0,0.00010599,2]
[424915745,1781271031000,-500.0,0.00010599,2]
[424915748,1781271031000,-410.08792352,0.00010599,2]
[424915730,1781271031000,-500.0,0.00010599,2]
[424915742,1781271031000,-500.0,0.00010599,2]
[424915743,1781271031000,-500.0,0.00010599,2]
[424915741,1781271031000,-216.65001533,0.00010599,2]
[424915734,1781271031000,-500.0,0.00010599,2]
[424915744,1781271031000,-500.0,0.00010599,2]
[424915740,1781271031000,-276.40042976,0.00010599,2]
[424915735,1781271031000,-500.0,0.00010599,2]
[424915738,1781271031000,-500.0,0.00010599,2]
[424915737,1781271031000,-500.0,0.00010599,2]
[424915739,1781271031000,-500.0,0.00010599,2]
[424915733,1781271031000,-500.0,0.00010599,2]
[424915736,1781271031000,-500.0,0.00010599,2]
[424915776,1781271032000,-8642.59489637,0.000108,3]
[424915774,1781271032000,-6000.0,0.000107,3]
[424915765,1781271032000,-276.71394675,0.00010599,2]
[424915763,1781271032000,-404.23419248,0.00010599,2]
[424915757,1781271032000,-500.0,0.00010599,2]
[424915759,1781271032000,-500.0,0.00010599,2]
[424915750,1781271032000,-500.0,0.00010599,2]
[424915752,1781271032000,-389.91207648,0.00010599,2]
[424915772,1781271032000,-3000.0,0.000106,3]
[424915761,1781271032000,-500.0,0.00010599,2]
[424915767,1781271032000,-500.0,0.00010599,2]
[424915755,1781271032000,-110.08792352,0.00010599,2]
[424915770,1781271032000,-500.0,0.00010599,2]
[424915781,1781271032000,-12000.0,0.000109,3]
[424915780,1781271032000,-748.64101858,0.00010899,2]
[424915783,1781271032000,-330.03903251,0.00010978,2]
[424915788,1781271032000,-623.75982494,0.00011063,2]
[424915785,1781271032000,-538.18293477,0.00011063,2]
[424915784,1781271032000,-12564.01308909,0.00011063,2]
[424915786,1781271032000,-129048.44992245,0.00011063,2]
[424915782,1781271032000,-166.66,0.00010959,2]
[424915790,1781271032000,-1641.7674847,0.00011063,2]
[424915787,1781271032000,-5110.11692132,0.00011063,2]
[424915789,1781271032000,-988.46017311,0.00011063,2]
[424915778,1781271032000,-357.40510363,0.000108,3]
[424915797,1781271037000,-164.27986954,0.00010968,2]
[424915798,1781271037000,-994.02065943,0.00011053,2]
[424915799,1781271037000,-1037.30291109,0.00011053,2]
[424915834,1781271038000,-500.0,0.00011178,2]
[424915826,1781271038000,-1108.95049288,0.00011177,3]
[424915828,1781271038000,-500.0,0.00011178,2]
[424915832,1781271038000,-500.0,0.00011178,2]
[424915830,1781271038000,-500.0,0.00011178,2]
[424915829,1781271038000,-500.0,0.00011178,2]
[424915831,1781271038000,-500.0,0.00011178,2]
[424915836,1781271038000,-500.0,0.00011178,2]
[424915838,1781271038000,-250.0,0.00011178,2]
[424915839,1781271038000,-166.66,0.00011178,2]
[424915840,1781271038000,-300.0,0.00011181,2]
[424915849,1781271038000,-166.66,0.00011397,2]
[424915844,1781271038000,-250.0,0.00011214,2]
[424915845,1781271038000,-500.0,0.00011214,2]
[424915848,1781271038000,-166.66,0.00011378,2]
[424915837,1781271038000,-500.0,0.00011178,2]
[424915843,1781271038000,-300.0,0.00011214,2]
[424915824,1781271038000,-500.0,0.00011176,2]
[424915846,1781271038000,-166.66,0.00011288,2]
[424915861,1781271038000,-610.0,0.00011659,2]
[424915850,1781271038000,-162.33,0.00011449,2]
[424915860,1781271038000,-6733.08966279,0.00011648,2]
[424915853,1781271038000,-1437.01,0.00011469,2]
[424915858,1781271038000,-500.0,0.00011572,2]
[424915827,1781271038000,-199.48738674,0.00011177,3]
[424915813,1781271038000,-150.0,0.00011085,2]
[424915833,1781271038000,-500.0,0.00011178,2]
[424915805,1781271038000,-552.93113016,0.00011063,2]
[424915800,1781271038000,-2031.32357052,0.00011054,2]
[424915802,1781271038000,-556.08064262,0.00011063,2]
[424915804,1781271038000,-1439.67972421,0.00011063,2]
[424915801,1781271038000,-74.82783557,0.00011063,2]
[424915803,1781271038000,-2762.94568636,0.00011063,2]
[424915806,1781271038000,-1344098.7846307,0.00011063,2]
[424915808,1781271038000,-2000.0,0.00011064,2]
[424915807,1781271038000,-715.83977586,0.00011064,2]
[424915809,1781271038000,-250.0,0.00011064,2]